bitfinex/quotes_BTCUSD_20240815
["timestamp","ask_amount","ask_price","bid_price","bid_amount"]
[1723764189405,0.008,57682.0,57681.0,1.52282354]
[1723764189858,0.012,57682.0,57681.0,1.52282354]
[1723764190055,0.004,57682.0,57681.0,1.52282354]
[1723764190268,0.007,57682.0,57681.0,1.52282354]
[1723764190782,0.004,57682.0,57681.0,1.52282354]
[1723764191000,0.005,57682.0,57681.0,1.52282354]
[1723764191201,0.007,57682.0,57681.0,1.52282354]
[1723764191402,0.007,57682.0,57681.0,1.86955754]
[1723764191611,0.007,57682.0,57681.0,1.96955754]
[1723764192666,0.001,57682.0,57681.0,1.96955754]
[1723764192870,0.002,57682.0,57681.0,1.96955754]
[1723764193074,0.001,57682.0,57681.0,1.96955754]
[1723764193272,0.00090421,57683.0,57682.0,1.355948]
[1723764193476,0.00090421,57683.0,57682.0,1.52750254]
[1723764193681,0.00090421,57683.0,57682.0,0.83404654]
[1723764193889,0.00090421,57683.0,57682.0,0.34491854]
[1723764194088,0.00090421,57683.0,57682.0,0.17155454]
[1723764194287,0.00086312,57683.0,57682.0,0.17155454]
[1723764194486,0.01125009,57683.0,57682.0,0.17155454]
[1723764194690,0.00086312,57683.0,57682.0,0.69164654]
[1723764194897,0.01125009,57683.0,57682.0,0.69164654]
[1723764195099,0.00086312,57683.0,57682.0,0.69464654]
[1723764195302,0.01125009,57683.0,57682.0,0.69664654]
[1723764195663,0.01125009,57683.0,57682.0,0.178364]
[1723764195994,0.01125009,57683.0,57682.0,0.005]
[1723764196198,0.01125009,57683.0,57682.0,0.178364]
[1723764196606,0.01125009,57683.0,57682.0,0.525092]
[1723764198867,0.01116341,57683.0,57682.0,0.525092]
[1723764199522,0.01116341,57683.0,57682.0,0.005]
[1723764199710,0.01116341,57683.0,57682.0,0.178364]
[1723764199999,0.01116341,57683.0,57682.0,0.175364]
[1723764200402,0.01316341,57683.0,57682.0,0.175364]
[1723764200754,0.01116341,57683.0,57682.0,0.175364]
[1723764201098,0.01116341,57683.0,57682.0,0.173364]
[1723764201331,0.0627568,57683.0,57682.0,0.173364]
[1723764201499,0.01716341,57683.0,57682.0,0.173364]
[1723764201702,0.02116341,57683.0,57682.0,0.173364]
[1723764201920,0.02116341,57683.0,57682.0,0.520092]
[1723764201921,0.0757568,57683.0,57682.0,0.520092]
[1723764202079,0.0757568,57683.0,57682.0,1.12097454]
[1723764202080,0.02416341,57683.0,57682.0,1.12097454]
[1723764202756,0.01516341,57683.0,57682.0,1.12097454]
[1723764202996,0.00077644,57683.0,57682.0,1.12097454]
[1723764203170,0.00377644,57683.0,57682.0,1.12097454]
[1723764203477,0.0161349,57683.0,57682.0,1.12097454]
[1723764203684,0.0141349,57683.0,57682.0,1.12097454]
[1723764203886,0.0141349,57683.0,57682.0,1.52870254]
[1723764204089,0.0161349,57683.0,57682.0,1.62870254]
[1723764204287,0.0161349,57683.0,57682.0,1.97543054]
[1723764204288,0.00277644,57683.0,57682.0,1.97543054]
[1723764204707,0.00277644,57683.0,57682.0,1.97643054]
[1723764204708,0.00577644,57683.0,57682.0,1.97643054]
[1723764204907,0.00577644,57683.0,57682.0,1.97543054]
[1723764204908,0.00277644,57683.0,57682.0,1.97543054]
[1723764205322,0.00577644,57683.0,57682.0,1.97543054]
[1723764205523,0.00277644,57683.0,57682.0,1.97543054]
[1723764205892,0.00277644,57683.0,57682.0,1.97743054]
[1723764206087,0.00277644,57683.0,57682.0,1.97543054]
[1723764206491,0.00077644,57683.0,57682.0,1.97543054]
[1723764206891,0.00077644,57683.0,57682.0,2.21703054]
[1723764207459,0.00077644,57683.0,57682.0,2.21903054]
[1723764207460,0.00377644,57683.0,57682.0,2.21903054]
[1723764207800,0.00177644,57683.0,57682.0,2.21903054]
[1723764208201,0.00277644,57683.0,57682.0,2.22303054]
[1723764208669,0.00277644,57683.0,57682.0,2.22403054]
[1723764208873,0.00277644,57683.0,57682.0,2.22603054]
[1723764209509,0.00277644,57683.0,57682.0,2.59775854]
[1723764209861,0.00277644,57683.0,57682.0,2.59375854]
[1723764211671,0.00277644,57683.0,57682.0,2.59275854]
[1723764211894,0.00277644,57683.0,57682.0,2.22303054]
[1723764212332,0.00277644,57683.0,57682.0,1.98837154]
[1723764213329,0.00277644,57683.0,57682.0,1.98437154]
[1723764213566,0.00277644,57683.0,57682.0,2.92242754]
[1723764213567,0.00177644,57683.0,57682.0,2.92242754]
[1723764213843,0.00177644,57683.0,57682.0,2.99743874]
[1723764214098,0.00277644,57683.0,57682.0,2.99943874]
[1723764214314,0.00277644,57683.0,57682.0,2.99343874]
[1723764214315,0.00077644,57683.0,57682.0,2.99343874]
[1723764214758,0.00277644,57683.0,57682.0,2.95142754]
[1723764215019,0.00177644,57683.0,57682.0,2.94942754]
[1723764215270,0.00277644,57683.0,57682.0,2.95142754]
[1723764215926,0.00277644,57683.0,57682.0,2.99943874]
[1723764216151,0.00177644,57683.0,57682.0,3.86543874]
[1723764216439,0.00177644,57683.0,57682.0,3.87843874]
[1723764216440,0.00277644,57683.0,57682.0,3.87843874]
[1723764216657,0.00277644,57683.0,57682.0,3.00843874]
[1723764216887,0.00277644,57683.0,57682.0,2.96042754]
[1723764217829,0.00277644,57683.0,57682.0,3.49042754]
[1723764218312,0.00090421,57695.0,57694.0,2.295908]
[1723764218526,0.00190421,57700.0,57699.0,1.218191]
[1723764218746,0.00190421,57700.0,57699.0,2.42407154]
[1723764218984,0.00190421,57700.0,57699.0,2.35069754]
[1723764220465,0.00190421,57700.0,57699.0,2.36469754]
[1723764220709,0.00190421,57700.0,57699.0,2.37518502]
[1723764220955,0.00190421,57700.0,57699.0,2.38918502]
[1723764222068,0.00190421,57700.0,57699.0,2.38618502]
[1723764222271,0.00190421,57700.0,57699.0,2.38918502]
[1723764223292,0.00190421,57700.0,57699.0,2.38718502]
[1723764223499,0.00190421,57700.0,57699.0,2.38918502]
[1723764223904,0.00190421,57700.0,57699.0,2.38418502]
[1723764224307,0.00190421,57700.0,57699.0,1.91455902]
[1723764224519,0.00190421,57700.0,57699.0,1.41274554]
[1723764225783,0.00190421,57700.0,57699.0,1.51274554]
[1723764225988,0.00190421,57700.0,57699.0,1.49874554]
[1723764226399,0.00190421,57700.0,57699.0,1.15211954]
[1723764226646,0.00190421,57700.0,57699.0,1.49874554]
[1723764226844,0.00190421,57700.0,57699.0,1.48474554]
[1723764227018,0.00190421,57700.0,57699.0,1.50174554]
[1723764227224,0.00190421,57700.0,57699.0,1.48774554]
[1723764227625,0.00190421,57700.0,57699.0,1.48974554]
[1723764228901,0.00190421,57700.0,57699.0,1.49668554]
[1723764229302,0.00190421,57700.0,57699.0,1.98341154]
[1723764230354,0.00190421,57700.0,57699.0,1.98041154]
[1723764230641,0.00190421,57700.0,57699.0,1.98641154]
[1723764230788,0.00190421,57700.0,57699.0,1.99441154]
[1723764232147,0.00190421,57700.0,57699.0,1.98641154]
[1723764232352,0.00190421,57700.0,57699.0,1.99641154]
[1723764232707,0.00190421,57700.0,57699.0,1.98841154]
[1723764232912,0.00190421,57700.0,57699.0,1.99741154]
[1723764233702,0.00190421,57700.0,57699.0,1.99841154]
[1723764233885,0.00190421,57700.0,57699.0,2.00041154]
[1723764234181,0.00190421,57700.0,57699.0,1.99741154]
[1723764237625,0.00190421,57700.0,57699.0,2.36803754]
[1723764237971,0.00190421,57700.0,57699.0,3.32963754]
[1723764238171,0.00190421,57700.0,57699.0,3.33363754]
[1723764238583,0.00190421,57700.0,57699.0,3.33163754]
[1723764238789,0.00190421,57700.0,57699.0,2.60963754]
[1723764239574,0.00190421,57700.0,57699.0,2.60863754]
[1723764239779,0.00190421,57700.0,57699.0,2.23901154]
[1723764240591,0.00190421,57700.0,57699.0,1.85731154]
[1723764244160,0.00190421,57700.0,57699.0,2.09891154]
[1723764244542,0.00190421,57700.0,57699.0,2.17501154]
[1723764244742,0.00190421,57700.0,57699.0,2.58183754]
[1723764244956,0.00190421,57700.0,57699.0,2.60483754]
[1723764247601,0.00190421,57700.0,57699.0,2.60583754]
[1723764248704,0.00190421,57700.0,57699.0,2.60483754]
[1723764249575,0.00190421,57700.0,57699.0,2.23521154]
[1723764249789,0.00190421,57700.0,57699.0,2.09891154]
[1723764250414,0.00190421,57700.0,57699.0,1.85731154]
[1723764252769,0.000822,57701.0,57699.0,3.33663754]
[1723764253014,1e-06,57701.0,57700.0,2.33123301]
[1723764253357,0.00061245,57711.0,57703.0,1.702809]
[1723764253559,0.00061245,57711.0,57703.0,2.34396554]
[1723764253779,0.00061245,57711.0,57703.0,2.69056754]
[1723764254847,0.00061245,57711.0,57703.0,2.70456754]
[1723764255078,0.00061245,57711.0,57703.0,3.41456754]
[1723764256074,0.00061245,57711.0,57703.0,3.42856754]
[1723764256906,0.00061245,57711.0,57703.0,3.43874162]
[1723764257120,0.00061245,57711.0,57703.0,3.48675282]
[1723764257681,1e-06,57704.0,57703.0,3.48675282]
[1723764257904,1e-06,57704.0,57703.0,3.5225834]
[1723764258829,1e-06,57704.0,57703.0,3.49056973]
[1723764259227,1e-06,57704.0,57703.0,3.43874162]
[1723764259535,1e-06,57704.0,57703.0,3.49058553]
[1723764260295,1e-06,57704.0,57703.0,3.43874162]
[1723764260516,1e-06,57704.0,57703.0,3.49058516]
[1723764261084,1e-06,57704.0,57703.0,3.48675282]
[1723764261306,1e-06,57704.0,57703.0,3.34675282]
[1723764261699,1e-06,57704.0,57703.0,3.39859672]
[1723764262246,1e-06,57704.0,57703.0,3.34675282]
[1723764262454,1e-06,57704.0,57703.0,3.35059035]
[1723764263881,1e-06,57704.0,57703.0,3.39860155]
[1723764266502,1e-06,57704.0,57703.0,3.39942255]
[1723764267303,1e-06,57704.0,57703.0,3.35141135]
[1723764267514,1e-06,57704.0,57703.0,2.63120735]
[1723764267714,1e-06,57704.0,57703.0,2.57935862]
[1723764267967,1e-06,57704.0,57703.0,2.00935862]
[1723764268555,1e-06,57704.0,57703.0,2.01135862]
[1723764269951,0.142301,57704.0,57703.0,1.06688054]
[1723764270170,0.142301,57704.0,57703.0,1.41348254]
[1723764270410,0.142301,57704.0,57703.0,1.06688054]
[1723764271085,0.142301,57704.0,57703.0,1.05288054]
[1723764271310,0.142301,57704.0,57703.0,1.05488054]
[1723764271550,0.142301,57704.0,57703.0,1.15488054]
[1723764271756,0.142301,57704.0,57703.0,1.49948254]
[1723764272316,0.142301,57704.0,57703.0,1.48548254]
[1723764272518,0.142301,57704.0,57703.0,1.48848254]
[1723764273117,0.142301,57704.0,57703.0,1.48548254]
[1723764274876,0.142301,57704.0,57703.0,1.13888054]
[1723764275077,0.144301,57704.0,57703.0,1.13888054]
[1723764275324,0.144301,57704.0,57703.0,1.48548254]
[1723764275746,0.144301,57704.0,57703.0,1.48648254]
[1723764276485,0.144301,57704.0,57703.0,1.48548254]
[1723764277385,0.142301,57704.0,57703.0,1.48548254]
[1723764277580,0.143301,57704.0,57703.0,1.48548254]
[1723764278586,0.142301,57704.0,57703.0,1.48548254]
[1723764279005,0.143301,57704.0,57703.0,1.48548254]
[1723764280247,0.143301,57704.0,57703.0,0.967326]
[1723764280446,0.143301,57704.0,57703.0,0.620724]
[1723764281067,0.143301,57704.0,57703.0,1.48548254]
[1723764281273,0.001001,57704.0,57703.0,1.48548254]
[1723764282271,1e-06,57704.0,57703.0,1.48548254]
[1723764282473,1e-06,57704.0,57703.0,1.49048254]
[1723764283108,1e-06,57704.0,57703.0,1.56998254]
[1723764284020,1e-06,57704.0,57703.0,1.56798254]
[1723764284190,1e-06,57704.0,57703.0,1.57098254]
[1723764284407,1e-06,57704.0,57703.0,1.56798254]
[1723764284779,1e-06,57704.0,57703.0,1.57198254]
[1723764285854,1e-06,57704.0,57703.0,1.91858454]
[1723764287322,1e-06,57704.0,57703.0,1.57198254]
[1723764287971,1e-06,57704.0,57703.0,1.91858454]
[1723764290322,0.00061245,57711.0,57710.0,1.21296]
[1723764290563,0.00061245,57711.0,57710.0,1.38451454]
[1723764291288,0.07921245,57711.0,57710.0,1.03795454]
[1723764291537,0.14241245,57711.0,57710.0,1.03795454]
[1723764291774,0.14341245,57711.0,57710.0,1.03795454]
[1723764291999,0.14441245,57711.0,57710.0,1.03795454]
[1723764292376,0.14441245,57711.0,57710.0,0.69139454]
[1723764292528,0.14441245,57711.0,57710.0,1.03795454]
[1723764295628,0.08121245,57711.0,57710.0,1.03795454]
[1723764303669,0.17328,57710.0,57707.0,0.173288]
[1723764303884,0.0823,57709.0,57705.0,0.00020761]
[1723764304059,0.00261245,57711.0,57705.0,0.00020761]
[1723764304060,0.0611,57708.0,57705.0,0.00020761]
[1723764304239,0.081,57706.0,57705.0,0.00020761]
[1723764304444,0.081,57706.0,57705.0,0.17350261]
[1723764305355,0.081,57706.0,57705.0,0.52009261]
[1723764305549,0.0611,57708.0,57705.0,0.52009261]
[1723764305550,0.001,57710.0,57709.0,0.519849]
[1723764305825,0.07841245,57711.0,57709.0,0.519849]
[1723764305826,0.07841245,57711.0,57710.0,0.51984]
[1723764307768,0.07941245,57711.0,57710.0,0.51984]
[1723764307980,0.00061245,57711.0,57710.0,1.03795454]
[1723764308357,0.00261245,57711.0,57710.0,1.03895454]
[1723764308967,0.00261245,57711.0,57710.0,1.38551454]
[1723764309165,0.00261245,57711.0,57710.0,1.52441454]
[1723764309372,0.00261245,57711.0,57710.0,1.87097454]
[1723764310267,0.00161245,57711.0,57710.0,1.86997454]
[1723764310468,0.00061245,57711.0,57710.0,2.21653454]
[1723764310669,0.00261245,57711.0,57710.0,2.32053454]
[1723764310922,0.00261245,57711.0,57710.0,2.32253454]
[1723764311124,0.00261245,57711.0,57710.0,2.93209454]
[1723764311319,0.00161245,57711.0,57710.0,2.69209454]
[1723764311546,0.00061245,57711.0,57710.0,2.69109454]
[1723764311752,0.00161245,57711.0,57710.0,2.69109454]
[1723764311971,0.000821,57729.0,57728.0,0.1415]
[1723764312191,0.000821,57729.0,57728.0,1.54678454]
[1723764312393,0.000821,57729.0,57728.0,2.58614054]
[1723764312724,0.000821,57729.0,57728.0,2.58814054]
[1723764312928,0.000821,57729.0,57728.0,2.58614054]
[1723764314109,0.00073436,57729.0,57728.0,2.59671252]
[1723764314979,0.00073436,57729.0,57728.0,2.62471252]
[1723764315570,0.00073436,57729.0,57728.0,2.27526052]
[1723764315717,0.00073436,57729.0,57728.0,2.62171252]
[1723764315924,0.00073436,57729.0,57728.0,2.62471252]
[1723764318940,0.00073436,57729.0,57728.0,2.62671252]
[1723764319679,0.00073436,57729.0,57728.0,2.61271252]
[1723764320159,0.00073436,57729.0,57728.0,2.62271252]
[1723764320274,0.00073436,57729.0,57728.0,2.26126052]
[1723764320470,0.00073436,57729.0,57728.0,2.27526052]
[1723764321781,0.00073436,57729.0,57728.0,2.28430252]
[1723764322469,0.00904201,57741.0,57728.0,2.28430252]
[1723764322470,0.0516944,57742.0,57741.0,0.865935]
[1723764322676,0.0516944,57742.0,57741.0,1.13748954]
[1723764323088,0.0516944,57742.0,57741.0,1.48386354]
[1723764323487,0.0653,57752.0,57751.0,0.173157]
[1723764323744,0.0653,57752.0,57751.0,0.34471154]
[1723764323868,0.0653,57752.0,57751.0,0.69102554]
[1723764324723,0.0663,57752.0,57751.0,0.69302554]
[1723764324936,0.0663,57752.0,57751.0,0.69202554]
[1723764325405,0.0663,57752.0,57751.0,0.69302554]
[1723764325549,0.146,57752.0,57751.0,0.69302554]
[1723764325965,0.145,57752.0,57751.0,0.69202554]
[1723764326389,0.146,57752.0,57751.0,0.69202554]
[1723764327126,0.146821,57752.0,57751.0,0.69202554]
[1723764327884,0.146821,57752.0,57751.0,0.17255454]
[1723764328239,0.146821,57752.0,57751.0,0.001]
[1723764328580,0.666283,57752.0,57751.0,0.001]
[1723764329568,1.361899,57752.0,57751.0,0.001]
[1723764329930,1.015591,57752.0,57751.0,0.001]
[1723764330563,1.014591,57752.0,57751.0,0.001]
[1723764330934,0.0771,57745.0,57740.0,0.346378]
[1723764331130,0.0771,57745.0,57740.0,0.51793254]
[1723764331329,0.0771,57745.0,57742.0,0.173182]
[1723764331973,0.0771,57745.0,57740.0,0.17155454]
[1723764332172,0.173184,57743.0,57740.0,0.17155454]
[1723764332468,0.346357,57744.0,57740.0,0.17155454]
[1723764332469,0.234685,57742.0,57740.0,0.17155454]
[1723764332599,0.0615,57742.0,57739.0,0.173192]
[1723764332799,0.0615,57742.0,57739.0,0.34474654]
[1723764333004,0.0615,57742.0,57735.0,0.346409]
[1723764333005,0.0766,57741.0,57735.0,0.346409]
[1723764333243,0.0766,57741.0,57734.0,0.346415]
[1723764333244,0.249788,57741.0,57740.0,0.001]
[1723764333665,0.0766,57741.0,57740.0,0.17155454]
[1723764333923,0.005,57745.0,57744.0,0.173176]
[1723764333924,0.0766,57745.0,57744.0,0.173176]
[1723764334095,0.0766,57745.0,57744.0,0.519532]
[1723764334682,0.0615,57746.0,57745.0,0.519525]
[1723764334841,0.0751,57749.0,57745.0,0.173174]
[1723764334842,0.309664,57749.0,57745.0,0.173174]
[1723764336354,0.482831,57749.0,57744.0,0.174177]
[1723764336560,0.482831,57749.0,57744.0,0.173177]
[1723764336561,0.173166,57748.0,57744.0,0.173177]
[1723764336989,0.173166,57748.0,57745.0,0.002]
[1723764337189,0.489831,57749.0,57745.0,0.001]
[1723764337528,0.599216,57746.0,57745.0,0.001]
[1723764338159,0.599216,57746.0,57745.0,0.002]
[1723764338513,0.599216,57746.0,57745.0,0.001]
[1723764339448,0.173177,57745.0,57741.0,0.173186]
[1723764339651,0.426044,57746.0,57741.0,0.173186]
[1723764339652,0.173179,57744.0,57741.0,0.173186]
[1723764340030,0.173175,57745.0,57741.0,0.173186]
[1723764340262,0.440044,57746.0,57743.0,0.173179]
[1723764340263,0.0937,57746.0,57743.0,0.173179]
[1723764340500,0.259872,57746.0,57743.0,0.173179]
[1723764340905,0.006,57744.0,57743.0,0.173179]
[1723764341318,0.006,57744.0,57743.0,0.519543]
[1723764341518,0.006,57744.0,57743.0,1.03845954]
[1723764341725,0.006,57744.0,57743.0,1.38482154]
[1723764342472,0.003,57746.0,57745.0,0.865875]
[1723764342744,0.003,57746.0,57745.0,1.03742954]
[1723764342944,0.000821,57749.0,57748.0,0.519498]
[1723764343349,0.000821,57749.0,57748.0,0.173166]
[1723764344340,0.007821,57749.0,57748.0,0.174166]
[1723764344871,0.000821,57749.0,57748.0,0.173166]
[1723764345440,0.000821,57749.0,57748.0,0.519498]
[1723764345646,0.007821,57749.0,57748.0,0.520498]
[1723764346047,0.007821,57749.0,57748.0,0.521498]
[1723764346373,0.173984,57749.0,57748.0,0.001]
[1723764346617,0.173984,57749.0,57748.0,0.002]
[1723764346618,0.60701,57749.0,57748.0,0.002]
[1723764346802,0.260684,57749.0,57748.0,0.001]
[1723764346999,0.60701,57749.0,57748.0,0.002]
[1723764347634,0.260684,57749.0,57748.0,0.002]
[1723764348012,0.253684,57749.0,57748.0,0.001]
[1723764348218,0.253684,57749.0,57748.0,0.002]
[1723764348577,0.260684,57749.0,57748.0,0.002]
[1723764351273,0.007821,57749.0,57748.0,0.175166]
[1723764351593,0.007821,57749.0,57748.0,0.69305254]
[1723764351918,0.007821,57749.0,57748.0,1.10068454]
[1723764352743,0.007821,57749.0,57748.0,1.44701654]
[1723764352933,0.007821,57749.0,57748.0,1.97164854]
[1723764354119,0.000821,57749.0,57748.0,1.97064854]
[1723764354320,0.000821,57749.0,57748.0,1.98100301]
[1723764354524,0.000821,57749.0,57748.0,1.98000301]
[1723764354728,0.006821,57749.0,57748.0,1.98100301]
[1723764355490,0.006821,57749.0,57748.0,1.98000301]
[1723764355491,0.000821,57749.0,57748.0,1.98000301]
[1723764355691,0.001821,57749.0,57748.0,1.99200301]
[1723764355893,0.001821,57749.0,57748.0,1.99400301]
[1723764356237,0.001821,57749.0,57748.0,1.99200301]
[1723764356441,0.001821,57749.0,57748.0,2.00400301]
[1723764358340,0.001821,57749.0,57748.0,2.35033501]
[1723764358543,0.001821,57749.0,57748.0,2.03000301]
[1723764358767,0.001821,57749.0,57748.0,2.03200301]
[1723764359195,0.001821,57749.0,57748.0,2.37833501]
[1723764359639,0.000821,57752.0,57751.0,0.178157]
[1723764359846,0.000821,57752.0,57751.0,0.70428881]
[1723764360158,0.000821,57752.0,57751.0,2.08954481]
[1723764360304,0.000821,57752.0,57751.0,2.77817281]
[1723764361342,0.000821,57752.0,57751.0,2.78017281]
[1723764361648,0.001821,57752.0,57751.0,2.79617281]
[1723764362251,0.001821,57752.0,57751.0,2.79217281]
[1723764362464,0.001821,57752.0,57751.0,2.00376754]
[1723764362901,0.001821,57752.0,57751.0,1.99276754]
[1723764363106,0.001821,57752.0,57751.0,1.99076754]
[1723764363315,0.001821,57752.0,57751.0,2.34108154]
[1723764363520,0.000821,57752.0,57751.0,2.32308154]
[1723764363721,0.000821,57752.0,57751.0,1.98976754]
[1723764363923,0.000821,57752.0,57751.0,1.97576754]
[1723764364126,0.000821,57752.0,57751.0,1.98976754]
[1723764364328,0.000821,57752.0,57751.0,2.00376754]
[1723764364526,0.000821,57752.0,57751.0,1.98976754]
[1723764364973,0.000821,57752.0,57751.0,2.00376754]
[1723764365416,0.000821,57752.0,57751.0,1.98976754]
[1723764365638,0.000821,57752.0,57751.0,1.97576754]
[1723764365816,0.000821,57752.0,57751.0,1.98976754]
[1723764366258,0.000821,57752.0,57751.0,1.97576754]
[1723764366385,0.000821,57752.0,57751.0,1.98976754]
[1723764366799,0.000821,57752.0,57751.0,1.97576754]
[1723764367010,0.000821,57752.0,57751.0,2.00376754]
[1723764367352,0.000821,57752.0,57751.0,1.98976754]
[1723764368058,0.000821,57752.0,57751.0,1.57805354]
[1723764368665,0.000821,57752.0,57751.0,1.59205354]
[1723764373410,0.000821,57752.0,57751.0,1.93836754]
[1723764374625,0.000821,57752.0,57751.0,1.51165354]
[1723764375430,0.000821,57752.0,57751.0,1.49765354]
[1723764375816,0.000821,57752.0,57751.0,1.50665354]
[1723764376018,0.000821,57752.0,57751.0,1.62825354]
[1723764376328,0.000821,57752.0,57751.0,1.63825354]
[1723764377095,0.001821,57752.0,57751.0,1.99356754]
[1723764377494,0.001821,57752.0,57751.0,1.98456754]
[1723764377495,0.000821,57752.0,57751.0,1.98456754]
[1723764377796,0.001821,57752.0,57751.0,1.99356754]
[1723764378254,0.001821,57752.0,57751.0,2.60548154]
[1723764378459,0.001821,57752.0,57751.0,2.65488656]
[1723764378652,0.001821,57752.0,57751.0,2.65288656]
[1723764378853,0.001821,57752.0,57751.0,2.61794572]
[1723764379460,0.001821,57752.0,57751.0,2.61594572]
[1723764379705,0.001821,57752.0,57751.0,2.61794572]
[1723764380080,0.001821,57752.0,57751.0,2.61994572]
[1723764382485,0.001821,57752.0,57751.0,2.61594572]
[1723764382723,0.001821,57752.0,57751.0,2.61794572]
[1723764382900,0.001821,57752.0,57751.0,2.66735074]
[1723764383953,0.001821,57752.0,57751.0,3.14735074]
[1723764384255,1e-06,57752.0,57751.0,3.14735074]
[1723764384482,1e-06,57752.0,57751.0,3.49366474]
[1723764385065,0.009231,57759.0,57758.0,2.047596]
[1723764385338,0.009231,57759.0,57758.0,1.38350654]
[1723764385989,0.009231,57759.0,57758.0,1.81077854]
[1723764386189,0.009231,57759.0,57758.0,1.87287854]
[1723764386387,0.009231,57759.0,57758.0,2.21915054]
[1723764386614,0.009231,57759.0,57758.0,2.25315054]
[1723764386766,0.009231,57759.0,57758.0,2.35515054]
[1723764386967,0.009231,57759.0,57758.0,2.36773644]
[1723764387171,0.009231,57759.0,57758.0,2.71400844]
[1723764387949,0.009231,57759.0,57758.0,2.72400844]
[1723764388753,0.009231,57759.0,57758.0,2.71900844]
[1723764389753,0.009231,57759.0,57758.0,2.72000844]
[1723764390223,0.009231,57759.0,57758.0,2.71900844]
[1723764390970,0.009231,57759.0,57758.0,2.37273644]
[1723764391170,0.009231,57759.0,57758.0,2.02646444]
[1723764391571,0.009231,57759.0,57758.0,1.99287854]
[1723764393083,0.009231,57759.0,57758.0,1.85077854]
[1723764396648,0.009231,57759.0,57758.0,1.50450654]
[1723764396877,0.088931,57759.0,57758.0,1.50450654]
[1723764397661,0.088931,57759.0,57758.0,1.05823454]
[1723764397862,0.088931,57759.0,57758.0,0.71196254]
[1723764399110,0.088931,57759.0,57758.0,1.05823454]
[1723764401253,0.088931,57759.0,57758.0,1.40450654]
[1723764402003,0.088931,57759.0,57758.0,1.05823454]
[1723764402996,0.088931,57759.0,57758.0,0.021]
[1723764403176,0.72625706,57759.0,57758.0,0.021]
[1723764403399,1.53385072,57759.0,57758.0,0.021]
[1723764403606,1.05851707,57759.0,57758.0,0.021]
[1723764403810,1.05857861,57759.0,57758.0,0.021]
[1723764404031,0.53917961,57759.0,57758.0,0.011]
[1723764405012,0.64273092,57759.0,57758.0,0.011]
[1723764405291,0.0793,57758.0,57756.0,0.173142]
[1723764405602,0.18282067,57757.0,57755.0,0.173144]
[1723764405812,0.0778,57755.0,57754.0,0.173148]
[1723764406016,0.0778,57755.0,57752.0,0.3472071]
[1723764406017,1.006255,57753.0,57752.0,0.0009031]
[1723764406244,1.51959283,57753.0,57752.0,0.0009031]
[1723764406450,1.54711792,57753.0,57752.0,0.0009031]
[1723764406662,1.89641992,57753.0,57752.0,1e-08]
[1723764406878,2.04860269,57753.0,57752.0,1e-08]
[1723764407080,2.36027484,57753.0,57752.0,1e-08]
[1723764407282,0.8658,57750.0,57746.0,0.0009031]
[1723764407493,1.39375549,57750.0,57746.0,0.0009031]
[1723764408269,1.38672516,57750.0,57746.0,0.0009031]
[1723764408448,0.69387675,57750.0,57746.0,0.0009031]
[1723764408655,1.14491243,57750.0,57746.0,0.0009031]
[1723764408855,1.49123243,57750.0,57746.0,0.0009031]
[1723764409197,1.55949233,57750.0,57746.0,0.0009031]
[1723764409645,1.68954904,57750.0,57749.0,0.0019031]
[1723764410297,1.49212645,57750.0,57749.0,0.0019031]
[1723764410503,1.49612645,57750.0,57749.0,0.0029031]
[1723764411305,1.09195509,57750.0,57749.0,0.0029031]
[1723764411710,1.43927509,57750.0,57749.0,0.0029031]
[1723764411910,1.53346613,57750.0,57749.0,0.0029031]
[1723764412106,1.53746613,57750.0,57749.0,0.0029031]
[1723764412375,1.61480431,57750.0,57749.0,0.0029031]
[1723764412825,1.61480354,57750.0,57749.0,0.0029031]
[1723764413036,2.01517777,57750.0,57749.0,0.0029031]
[1723764413488,1.91206122,57750.0,57749.0,0.0029031]
[1723764414070,2.55205231,57750.0,57749.0,0.0019031]
[1723764414372,2.55070707,57750.0,57749.0,0.0019031]
[1723764414689,2.55270707,57750.0,57749.0,0.0029031]
[1723764414894,2.55170707,57750.0,57749.0,0.0019031]
[1723764415270,2.56170707,57750.0,57749.0,0.0029031]
[1723764415454,2.16260226,57750.0,57749.0,0.0029031]
[1723764415898,2.16060226,57750.0,57749.0,0.0019031]
[1723764416117,2.17260226,57750.0,57749.0,0.0029031]
[1723764416510,1.90078613,57750.0,57749.0,0.0029031]
[1723764416711,1.37891159,57750.0,57749.0,0.0029031]
[1723764417244,1.37791159,57750.0,57749.0,0.0029031]
[1723764417445,1.083088,57750.0,57749.0,0.0029031]
[1723764417640,0.68527159,57750.0,57749.0,0.0029031]
[1723764418316,0.022,57750.0,57749.0,0.0029031]
[1723764418509,1.05020516,57750.0,57749.0,0.0029031]
[1723764418717,1.39952516,57750.0,57749.0,0.0029031]
[1723764418920,1.39652516,57750.0,57749.0,0.0029031]
[1723764419329,0.68275552,57750.0,57749.0,0.0029031]
[1723764419528,0.1598,57750.0,57749.0,0.0029031]
[1723764419740,0.33296,57750.0,57749.0,0.0029031]
[1723764419939,0.67928,57750.0,57749.0,0.0029031]
[1723764420068,0.33296,57750.0,57749.0,0.0029031]
[1723764420881,0.67928,57750.0,57749.0,0.0029031]
[1723764421488,1.1281582,57750.0,57749.0,0.0029031]
[1723764421695,0.865845,57747.0,57746.0,0.0009031]
[1723764422938,0.865845,57747.0,57746.0,0.0019031]
[1723764423306,1.366183,57747.0,57746.0,0.0019031]
[1723764423529,1.53973754,57747.0,57746.0,0.0019031]
[1723764424019,1.53973754,57747.0,57739.0,0.0009031]
[1723764424020,1.21233,57740.0,57739.0,0.0009031]
[1723764424168,1.60253,57740.0,57739.0,0.0009031]
[1723764424604,1.70453,57740.0,57739.0,0.0009031]
[1723764424750,1.87608454,57740.0,57739.0,0.0009031]
[1723764425166,1.92753191,57740.0,57739.0,0.0009031]
[1723764425369,1.87608454,57740.0,57739.0,0.0009031]
[1723764425571,1.87608454,57740.0,57728.0,0.0009031]
[1723764425572,1.213561,57729.0,57728.0,0.0009031]
[1723764425772,2.05996154,57729.0,57728.0,0.0009031]
[1723764426167,2.25451608,57729.0,57728.0,0.0009031]
[1723764426342,1.70951554,57729.0,57728.0,0.0009031]
[1723764426548,1.70851554,57729.0,57728.0,0.0009031]
[1723764426680,1.299361,57729.0,57728.0,0.0009031]
[1723764427379,1.316361,57729.0,57728.0,0.0009031]